fUST/lending_fUST_20250713
["ID","MTS","AMOUNT","RATE_DAILY","PERIOD"]
[371715046,1752401447969,-460.0,0.0001726,2]
[371715048,1752401447979,-460.0,0.0001726,2]
[371715050,1752401447989,-439.24,0.0001726,2]
[371715052,1752401447998,-460.0,0.0001726,2]
[371715054,1752401448009,-460.0,0.0001726,2]
[371715056,1752401448018,-460.0,0.0001726,2]
[371715058,1752401448028,-460.0,0.0001726,2]
[371715060,1752401448038,-460.0,0.0001726,2]
[371715062,1752401448048,-460.0,0.0001726,2]
[371715064,1752401448058,-460.0,0.0001726,2]
[371715067,1752401448069,-460.0,0.0001726,2]
[371715068,1752401448079,-460.0,0.0001726,2]
[371715070,1752401448089,-460.0,0.0001726,2]
[371715072,1752401448099,-460.0,0.0001726,2]
[371715075,1752401448109,-460.0,0.0001726,2]
[371715077,1752401448119,-460.0,0.0001726,2]
[371715079,1752401448129,-419.09874558,0.0001726,2]
[371715081,1752401448139,-460.0,0.0001726,2]
[371715082,1752401448157,-460.0,0.0001726,2]
[371715085,1752401448167,-460.0,0.0001726,2]
[371715087,1752401448177,-460.0,0.0001726,2]
[371715088,1752401448187,-460.0,0.0001726,2]
[371715091,1752401448198,-460.0,0.0001726,2]
[371715093,1752401448208,-460.0,0.0001726,2]
[371715094,1752401448218,-859.14,0.0001726,2]
[371715097,1752401448227,-460.0,0.0001726,2]
[371715099,1752401448238,-460.0,0.0001726,2]
[371715101,1752401448248,-460.0,0.0001726,2]
[371715103,1752401448257,-460.0,0.0001726,2]
[371715105,1752401448267,-462.14455293,0.0001726,2]
[371715107,1752401448278,-460.0,0.0001726,2]
[371715109,1752401448288,-460.0,0.0001726,2]
[371715111,1752401448298,-460.0,0.0001726,2]
[371715112,1752401448309,-460.0,0.0001726,2]
[371715114,1752401448320,-460.0,0.0001726,2]
[371715116,1752401448330,-460.0,0.0001726,2]
[371715118,1752401448339,-460.0,0.0001726,2]
[371715120,1752401448349,-460.0,0.0001726,2]
[371715122,1752401448359,-460.0,0.0001726,2]
[371715124,1752401448368,-460.0,0.0001726,2]
[371715126,1752401448378,-460.0,0.0001726,2]
[371715128,1752401448388,-460.0,0.0001726,2]
[371715130,1752401448399,-460.0,0.0001726,2]
[371715132,1752401448408,-460.0,0.0001726,2]
[371715134,1752401448418,-460.0,0.0001726,2]
[371715137,1752401448429,-460.0,0.0001726,2]
[371715139,1752401448439,-460.0,0.0001726,2]
[371715141,1752401448448,-460.0,0.0001726,2]
[371715143,1752401448458,-460.0,0.0001726,2]
[371715145,1752401448469,-1165.32,0.0001726,2]
[371715147,1752401448479,-151.0,0.0001726,2]
[371715149,1752401448489,-151.0,0.0001726,2]
[371715151,1752401448499,-460.0,0.0001726,2]
[371715153,1752401448509,-611.67,0.0001726,2]
[371715155,1752401448519,-460.0,0.0001726,2]
[371715157,1752401448529,-460.0,0.0001726,2]
[371715159,1752401448539,-460.0,0.0001726,2]
[371715161,1752401448550,-460.0,0.0001726,2]
[371715163,1752401448559,-460.0,0.0001726,2]
[371715165,1752401448569,-632.75,0.0001726,2]
[371715167,1752401448579,-460.0,0.0001726,2]
[371715169,1752401448589,-956.74,0.0001726,2]
[371715171,1752401448598,-1121.54,0.0001726,2]
[371715173,1752401448608,-460.0,0.0001726,2]
[371715175,1752401448617,-460.0,0.0001726,2]
[371715177,1752401448627,-460.0,0.0001726,2]
[371715179,1752401448637,-2443.8,0.0001726,2]
[371715181,1752401448647,-2757.78,0.0001726,2]
[371715183,1752401448657,-460.0,0.0001726,2]
[371715185,1752401448668,-630.2,0.0001726,2]
[371715187,1752401448677,-151.0,0.0001726,2]
[371715189,1752401448687,-241.846942,0.0001726,2]
[371715191,1752401448697,-902.92,0.0001726,2]
[371715193,1752401448707,-460.0,0.0001726,2]
[371715195,1752401448717,-460.0,0.0001726,2]
[371715197,1752401448727,-460.0,0.0001726,2]
[371715199,1752401448738,-460.0,0.0001726,2]
[371715201,1752401448748,-2126.61,0.0001726,2]
[371715203,1752401448759,-2976.86,0.0001726,2]
[371715205,1752401448772,-1054.85,0.0001726,2]
[371715207,1752401448783,-460.0,0.0001726,2]
[371715209,1752401448793,-460.0,0.0001726,2]
[371715211,1752401448804,-460.0,0.0001726,2]
[371715214,1752401448816,-460.0,0.0001726,2]
[371715216,1752401448826,-702.08,0.0001726,2]
[371715218,1752401448836,-460.0,0.0001726,2]
[371715220,1752401448846,-460.0,0.0001726,2]
[371715222,1752401448857,-460.0,0.0001726,2]
[371715224,1752401448867,-460.0,0.0001726,2]
[371715226,1752401448877,-460.0,0.0001726,2]
[371715228,1752401448887,-460.0,0.0001726,2]
[371715230,1752401448897,-460.0,0.0001726,2]
[371715232,1752401448907,-487.23,0.0001726,2]
[371715234,1752401448917,-460.0,0.0001726,2]
[371715236,1752401448927,-460.0,0.0001726,2]
[371715238,1752401448936,-460.0,0.0001726,2]
[371715240,1752401448946,-460.0,0.0001726,2]
[371715242,1752401448956,-266.46663728,0.00017295,2]
[371715244,1752401448966,-500.0,0.0001732,2]
[371715246,1752401448975,-506.97598134,0.00017321,2]
[371715248,1752401448985,-1000.0,0.00017321,2]
[371715250,1752401448995,-1000.0,0.00017321,2]
[371715252,1752401449005,-875.90731154,0.00017321,2]
[371715254,1752401449015,-1000.0,0.00017321,2]
[371715256,1752401449025,-673.82905292,0.00017321,2]
[371715258,1752401449034,-1000.0,0.00017321,2]
[371715260,1752401449043,-1000.0,0.00017321,2]
[371715262,1752401449053,-1000.0,0.00017321,2]
[371715264,1752401449063,-1000.0,0.00017321,2]
[371715266,1752401449073,-726.56500449,0.00017321,2]
[371715268,1752401449083,-987.80547386,0.00017321,2]
[371715270,1752401449093,-1002.5197529,0.00017321,2]
[371715272,1752401449102,-1000.0,0.00017321,2]
[371715274,1752401449112,-1000.0,0.00017321,2]
[371715276,1752401449122,-1000.0,0.00017321,2]
[371715278,1752401449131,-1000.0,0.00017321,2]
[371715280,1752401449140,-957.35057617,0.00017321,2]
[371715281,1752401449150,-328.94402771,0.00017321,2]
[371715284,1752401449160,-1000.0,0.00017321,2]
[371715286,1752401449170,-164.73942471,0.00017321,2]
[371715287,1752401449179,-500.0,0.00017321,2]
[371715289,1752401449188,-472.30408363,0.00017321,2]
[371715291,1752401449199,-501.25544665,0.00017321,2]
[371715294,1752401449211,-502.26266064,0.00017321,2]
[371715295,1752401449221,-1000.0,0.00017321,2]
[371715298,1752401449231,-500.0,0.00017321,2]
[371715300,1752401449242,-505.50054643,0.00017321,2]
[371715302,1752401449252,-1000.0,0.00017321,2]
[371715304,1752401449262,-357.31698797,0.00017321,2]
[371715306,1752401449271,-487.97656212,0.00017332,2]
[371715307,1752401449281,-460.0,0.00017332,2]
[371715310,1752401449291,-460.0,0.00017332,2]
[371715312,1752401449300,-460.0,0.00017332,2]
[371715313,1752401449310,-460.0,0.00017332,2]
[371715315,1752401449319,-460.0,0.00017332,2]
[371715317,1752401449329,-460.0,0.00017332,2]
[371715320,1752401449339,-460.0,0.00017332,2]
[371715322,1752401449349,-500.0,0.00017332,2]
[371715324,1752401449358,-460.0,0.00017332,2]
[371715326,1752401449368,-460.0,0.00017332,2]
[371715328,1752401449377,-583.42659045,0.00017332,2]
[371715330,1752401449387,-460.0,0.00017332,2]
[371715332,1752401449395,-460.0,0.00017332,2]
[371715334,1752401449405,-460.0,0.00017332,2]
[371715336,1752401449415,-563.82727821,0.00017332,2]
[371715338,1752401449424,-3932.39352121,0.00017521,2]
[371715340,1752401449434,-500.0,0.00017533,2]
[371715342,1752401449443,-500.0,0.00017533,2]
[371715344,1752401449452,-500.0,0.00017533,2]
[371715346,1752401449462,-500.0,0.00017533,2]
[371715348,1752401449472,-346.59,0.00017533,2]
[371715350,1752401449482,-341.42,0.00017534,2]
[371715352,1752401449491,-460.0,0.00017534,2]
[371715354,1752401449501,-460.0,0.00017534,2]
[371715356,1752401449511,-460.0,0.00017534,2]
[371715358,1752401449521,-460.0,0.00017534,2]
[371715360,1752401449530,-460.0,0.00017534,2]
[371715362,1752401449540,-460.0,0.00017534,2]
[371715364,1752401449548,-460.0,0.00017534,2]
[371715366,1752401449558,-460.0,0.00017534,2]
[371715368,1752401449567,-460.0,0.00017534,2]
[371715370,1752401449577,-460.0,0.00017534,2]
[371715372,1752401449587,-460.0,0.00017534,2]
[371715374,1752401449596,-460.0,0.00017534,2]
[371715375,1752401449606,-460.0,0.00017534,2]
[371715376,1752401449615,-460.0,0.00017534,2]
[371715377,1752401449624,-460.0,0.00017534,2]
[371715378,1752401449633,-460.0,0.00017534,2]
[371715379,1752401449642,-460.0,0.00017534,2]
[371715381,1752401449651,-460.0,0.00017534,2]
[371715383,1752401449661,-460.0,0.00017534,2]
[371715386,1752401449671,-460.0,0.00017534,2]
[371715388,1752401449681,-460.0,0.00017534,2]
[371715399,1752401449783,-460.0,0.00017534,2]
[371715401,1752401449793,-460.0,0.00017534,2]
[371715403,1752401449803,-460.0,0.00017534,2]
[371715405,1752401449812,-460.0,0.00017534,2]
[371715407,1752401449822,-460.0,0.00017534,2]
[371715409,1752401449831,-583.12,0.00017534,2]
[371715411,1752401449841,-460.0,0.00017534,2]
[371715413,1752401449851,-460.0,0.00017534,2]
[371715415,1752401449860,-460.0,0.00017534,2]
[371715417,1752401449870,-460.0,0.00017534,2]
[371715419,1752401449880,-460.0,0.00017534,2]
[371715421,1752401449889,-460.0,0.00017534,2]
[371715423,1752401449898,-460.0,0.00017534,2]
[371715425,1752401449908,-460.0,0.00017534,2]
[371715427,1752401449917,-460.0,0.00017534,2]
[371715429,1752401449927,-460.0,0.00017534,2]
[371715431,1752401449936,-460.0,0.00017534,2]
[371715433,1752401449945,-859.14,0.00017534,2]
[371715435,1752401449955,-460.0,0.00017534,2]
[371715437,1752401449964,-460.0,0.00017534,2]
[371715439,1752401449975,-460.0,0.00017534,2]
[371715441,1752401449984,-460.0,0.00017534,2]
[371715443,1752401449993,-460.0,0.00017534,2]
[371715444,1752401450002,-460.0,0.00017534,2]
[371715446,1752401450012,-460.0,0.00017534,2]
[371715448,1752401450021,-460.0,0.00017534,2]
[371715450,1752401450031,-460.0,0.00017534,2]
[371715452,1752401450042,-460.0,0.00017534,2]
[371715454,1752401450052,-460.0,0.00017534,2]
[371715456,1752401450062,-460.0,0.00017534,2]
[371715458,1752401450072,-460.0,0.00017534,2]
[371715461,1752401450082,-460.0,0.00017534,2]
[371715463,1752401450092,-460.0,0.00017534,2]
[371715465,1752401450102,-460.0,0.00017534,2]
[371715467,1752401450111,-460.0,0.00017534,2]
[371715469,1752401450121,-460.0,0.00017534,2]
[371715471,1752401450131,-460.0,0.00017534,2]
[371715473,1752401450141,-566.78,0.00017534,2]
[371715475,1752401450150,-1165.32,0.00017534,2]
[371715477,1752401450160,-151.0,0.00017534,2]
[371715479,1752401450169,-460.0,0.00017534,2]
[371715481,1752401450179,-611.67,0.00017534,2]
[371715483,1752401450189,-460.0,0.00017534,2]
[371715485,1752401450198,-460.0,0.00017534,2]
[371715487,1752401450208,-460.0,0.00017534,2]
[371715489,1752401450217,-460.0,0.00017534,2]
[371715491,1752401450227,-460.0,0.00017534,2]
[371715493,1752401450237,-632.75,0.00017534,2]
[371715495,1752401450246,-460.0,0.00017534,2]
[371715497,1752401450255,-956.74,0.00017534,2]
[371715499,1752401450264,-1121.54,0.00017534,2]
[371715501,1752401450274,-460.0,0.00017534,2]
[371715503,1752401450284,-460.0,0.00017534,2]
[371715505,1752401450294,-460.0,0.00017534,2]
[371715507,1752401450303,-2443.8,0.00017534,2]
[371715509,1752401450313,-2757.78,0.00017534,2]
[371715511,1752401450323,-460.0,0.00017534,2]
[371715513,1752401450332,-630.2,0.00017534,2]
[371715515,1752401450342,-460.0,0.00017534,2]
[371715517,1752401450351,-902.92,0.00017534,2]
[371715519,1752401450361,-460.0,0.00017534,2]
[371715521,1752401450371,-460.0,0.00017534,2]
[371715523,1752401450382,-460.0,0.00017534,2]
[371715526,1752401450392,-2126.61,0.00017534,2]
[371715528,1752401450401,-2976.86,0.00017534,2]
[371715529,1752401450411,-1054.85,0.00017534,2]
[371715532,1752401450420,-460.0,0.00017534,2]
[371715533,1752401450430,-460.0,0.00017534,2]
[371715536,1752401450440,-460.0,0.00017534,2]
[371715538,1752401450450,-460.0,0.00017534,2]
[371715540,1752401450460,-702.08,0.00017534,2]
[371715542,1752401450470,-460.0,0.00017534,2]
[371715544,1752401450479,-460.0,0.00017534,2]
[371715546,1752401450489,-460.0,0.00017534,2]
[371715548,1752401450499,-460.0,0.00017534,2]
[371715550,1752401450508,-460.0,0.00017534,2]
[371715552,1752401450518,-487.23,0.00017534,2]
[371715554,1752401450528,-460.0,0.00017534,2]
[371715556,1752401450537,-460.0,0.00017534,2]
[371715558,1752401450547,-460.0,0.00017534,2]
[371715560,1752401450557,-460.0,0.00017534,2]
[371715562,1752401450566,-443.80285611,0.00017593,2]
[371715564,1752401450575,-460.0,0.00017606,2]
[371715566,1752401450585,-460.0,0.00017606,2]
[371715568,1752401450594,-460.0,0.00017606,2]
[371715570,1752401450603,-460.0,0.00017606,2]
[371715572,1752401450613,-1600.0,0.00017776,2]
[371715574,1752401450623,-460.0,0.00017808,2]
[371715576,1752401450632,-460.0,0.00017808,2]
[371715579,1752401450642,-460.0,0.00017808,2]
[371715580,1752401450652,-460.0,0.00017808,2]
[371715583,1752401450661,-460.0,0.00017808,2]
[371715585,1752401450671,-460.0,0.00017808,2]
[371715586,1752401450681,-365.02,0.00017808,2]
[371715589,1752401450691,-460.0,0.00017808,2]
[371715590,1752401450700,-460.0,0.00017808,2]
[371715592,1752401450710,-460.0,0.00017808,2]
[371715594,1752401450719,-460.0,0.00017808,2]
[371715597,1752401450729,-460.0,0.00017808,2]
[371715598,1752401450738,-460.0,0.00017808,2]
[371715600,1752401450747,-312.02494386,0.00017808,2]
[371715602,1752401450757,-460.0,0.00017808,2]
[371715605,1752401450771,-460.0,0.00017808,2]
[371715607,1752401450782,-460.0,0.00017808,2]
[371715609,1752401450792,-460.0,0.00017808,2]
[371715611,1752401450801,-460.0,0.00017808,2]
[371715613,1752401450811,-460.0,0.00017808,2]
[371715615,1752401450821,-460.0,0.00017808,2]
[371715617,1752401450830,-460.0,0.00017808,2]
[371715619,1752401450840,-460.0,0.00017808,2]
[371715621,1752401450851,-859.14,0.00017808,2]
[371715623,1752401450860,-460.0,0.00017808,2]
[371715625,1752401450870,-460.0,0.00017808,2]
[371715627,1752401450879,-460.0,0.00017808,2]
[371715629,1752401450889,-460.0,0.00017808,2]
[371715631,1752401450898,-460.0,0.00017808,2]
[371715633,1752401450909,-460.0,0.00017808,2]
[371715635,1752401450918,-460.0,0.00017808,2]
[371715637,1752401450927,-460.0,0.00017808,2]
[371715639,1752401450937,-460.0,0.00017808,2]
[371715641,1752401450947,-460.0,0.00017808,2]
[371715643,1752401450956,-460.0,0.00017808,2]
[371715645,1752401450965,-460.0,0.00017808,2]
[371715647,1752401450974,-460.0,0.00017808,2]
[371715649,1752401450984,-460.0,0.00017808,2]
[371715651,1752401450994,-460.0,0.00017808,2]
[371715653,1752401451003,-460.0,0.00017808,2]
[371715655,1752401451012,-460.0,0.00017808,2]
[371715657,1752401451022,-1165.32,0.00017808,2]
[371715660,1752401451032,-151.0,0.00017808,2]
[371715662,1752401451041,-460.0,0.00017808,2]
[371715664,1752401451052,-611.67,0.00017808,2]
[371715666,1752401451062,-460.0,0.00017808,2]
[371715668,1752401451071,-460.0,0.00017808,2]
[371715670,1752401451080,-460.0,0.00017808,2]
[371715671,1752401451090,-460.0,0.00017808,2]
[371715674,1752401451100,-632.75,0.00017808,2]
[371715676,1752401451112,-460.0,0.00017808,2]
[371715677,1752401451123,-956.74,0.00017808,2]
[371715680,1752401451133,-1121.54,0.00017808,2]
[371715681,1752401451142,-460.0,0.00017808,2]
[371715684,1752401451152,-460.0,0.00017808,2]
[371715686,1752401451163,-460.0,0.00017808,2]
[371715688,1752401451172,-2443.8,0.00017808,2]
[371715689,1752401451182,-2757.78,0.00017808,2]
[371715692,1752401451192,-244.07842454,0.00017808,2]
[371715694,1752401451201,-630.2,0.00017808,2]
[371715696,1752401451211,-902.92,0.00017808,2]
[371715697,1752401451221,-460.0,0.00017808,2]
[371715700,1752401451235,-460.0,0.00017808,2]
[371715702,1752401451248,-460.0,0.00017808,2]
[371715704,1752401451257,-2126.61,0.00017808,2]
[371715706,1752401451267,-2976.86,0.00017808,2]
[371715708,1752401451278,-1054.85,0.00017808,2]
[371715710,1752401451287,-460.0,0.00017808,2]
[371715712,1752401451297,-460.0,0.00017808,2]
[371715714,1752401451307,-460.0,0.00017808,2]
[371715716,1752401451316,-702.08,0.00017808,2]
[371715718,1752401451326,-460.0,0.00017808,2]
[371715720,1752401451336,-460.0,0.00017808,2]
[371715722,1752401451345,-460.0,0.00017808,2]
[371715724,1752401451354,-514.40934441,0.00017808,2]
[371715726,1752401451364,-487.23,0.00017808,2]
[371715728,1752401451373,-460.0,0.00017808,2]
[371715730,1752401451382,-460.0,0.00017808,2]
[371715732,1752401451391,-460.0,0.00017808,2]
[371715734,1752401451400,-460.0,0.00017808,2]
[371715736,1752401451409,-3932.39352121,0.00017831,2]
[371715738,1752401451419,-420.0,0.00017856,2]
[371715740,1752401451428,-509.02355026,0.00017868,2]
[371715742,1752401451437,-1397.95170197,0.00017868,2]
[371715744,1752401451447,-510.59151944,0.00017868,2]
[371715746,1752401451456,-1500.0,0.00017868,2]
[371715748,1752401451465,-1500.0,0.00017868,2]
[371715750,1752401451475,-449.33250482,0.00017868,2]
[371715752,1752401451484,-740.24514543,0.00017868,2]
[371715753,1752401451493,-501.71534255,0.00017868,2]
[371715756,1752401451503,-1500.0,0.00017868,2]
[371715758,1752401451512,-1500.0,0.00017868,2]
[371715759,1752401451521,-500.0,0.00017868,2]
[371715761,1752401451531,-1500.0,0.00017868,2]
[371715764,1752401451541,-460.0,0.0001788,2]
[371715765,1752401451550,-460.0,0.0001788,2]
[371715768,1752401451560,-151.0,0.0001788,2]
[371715769,1752401451570,-381.88,0.00018072,3]
[371715771,1752401451579,-460.0,0.00018082,2]
[371715773,1752401451589,-460.0,0.00018082,2]
[371715775,1752401451598,-460.0,0.00018082,2]
[371715778,1752401451608,-327.71838445,0.00018082,2]
[371715779,1752401451619,-460.0,0.00018082,2]
[371715781,1752401451629,-460.0,0.00018082,2]
[371715784,1752401451639,-460.0,0.00018082,2]
[371715786,1752401451649,-460.0,0.00018082,2]
[371715788,1752401451659,-460.0,0.00018082,2]
[371715789,1752401451667,-460.0,0.00018082,2]
[371715791,1752401451676,-460.0,0.00018082,2]
[371715793,1752401451685,-460.0,0.00018082,2]
[371715795,1752401451695,-460.0,0.00018082,2]
[371715797,1752401451704,-460.0,0.00018082,2]
[371715799,1752401451713,-460.0,0.00018082,2]
[371715801,1752401451723,-460.0,0.00018082,2]
[371715803,1752401451732,-460.0,0.00018082,2]
[371715805,1752401451741,-859.14,0.00018082,2]
[371715808,1752401451751,-460.0,0.00018082,2]
[371715810,1752401451761,-460.0,0.00018082,2]
[371715812,1752401451775,-460.0,0.00018082,2]
[371715813,1752401451784,-460.0,0.00018082,2]
[371715816,1752401451794,-460.0,0.00018082,2]
[371715818,1752401451804,-460.0,0.00018082,2]
[371715829,1752401451905,-460.0,0.00018082,2]
[371715832,1752401451915,-460.0,0.00018082,2]
[371715834,1752401451925,-460.0,0.00018082,2]
[371715836,1752401451935,-460.0,0.00018082,2]
[371715838,1752401451944,-460.0,0.00018082,2]
[371715840,1752401451953,-460.0,0.00018082,2]
[371715842,1752401451962,-460.0,0.00018082,2]
[371715844,1752401451971,-460.0,0.00018082,2]
[371715846,1752401451980,-460.0,0.00018082,2]
[371715848,1752401451990,-1165.32,0.00018082,2]
[371715850,1752401451999,-460.0,0.00018082,2]
[371715852,1752401452009,-611.67,0.00018082,2]
[371715854,1752401452018,-460.0,0.00018082,2]
[371715856,1752401452028,-460.0,0.00018082,2]
[371715858,1752401452038,-460.0,0.00018082,2]
[371715860,1752401452048,-460.0,0.00018082,2]
[371715862,1752401452058,-632.75,0.00018082,2]
[371715864,1752401452068,-460.0,0.00018082,2]
[371715866,1752401452078,-956.74,0.00018082,2]
[371715868,1752401452088,-1121.54,0.00018082,2]
[371715870,1752401452097,-460.0,0.00018082,2]
[371715872,1752401452107,-460.0,0.00018082,2]
[371715874,1752401452117,-2443.8,0.00018082,2]
[371715876,1752401452127,-2757.78,0.00018082,2]
[371715878,1752401452137,-630.2,0.00018082,2]
[371715880,1752401452147,-902.92,0.00018082,2]
[371715882,1752401452157,-333.88,0.00018082,2]
[371715884,1752401452167,-460.0,0.00018082,2]
[371715886,1752401452176,-460.0,0.00018082,2]
[371715888,1752401452186,-2126.61,0.00018082,2]
[371715891,1752401452195,-2976.86,0.00018082,2]
[371715893,1752401452205,-1054.85,0.00018082,2]
[371715895,1752401452215,-460.0,0.00018082,2]
[371715897,1752401452226,-460.0,0.00018082,2]
[371715899,1752401452236,-460.0,0.00018082,2]
[371715901,1752401452245,-702.08,0.00018082,2]
[371715903,1752401452255,-460.0,0.00018082,2]
[371715905,1752401452264,-460.0,0.00018082,2]
[371715907,1752401452274,-460.0,0.00018082,2]
[371715909,1752401452283,-487.23,0.00018082,2]
[371715911,1752401452293,-460.0,0.00018082,2]
[371715913,1752401452303,-460.0,0.00018082,2]
[371715915,1752401452312,-460.0,0.00018082,2]
[371715917,1752401452321,-460.0,0.00018082,2]
[371715919,1752401452331,-2962.22794333,0.00018114,2]
[371715921,1752401452340,-160.0,0.00018136,2]
[371715923,1752401452350,-3932.39352121,0.00018141,2]
[371715925,1752401452361,-173.833098,0.00018185,2]
[371715927,1752401452371,-836.956561,0.00018343,2]
[371715929,1752401452380,-160.0,0.00018343,2]
[371715931,1752401452391,-160.0,0.00018343,2]
[371715933,1752401452402,-160.0,0.00018343,2]
[371715936,1752401452411,-160.0,0.00018343,2]
[371715938,1752401452421,-160.0,0.00018343,2]
[371715940,1752401452431,-160.0,0.00018343,2]
[371715942,1752401452441,-214.29528141,0.00018343,2]
[371715943,1752401452451,-230.68503973,0.00018343,2]
[371715945,1752401452460,-838.53376533,0.00018343,2]
[371715947,1752401452470,-160.0,0.00018343,2]
[371715949,1752401452479,-215.42595214,0.00018343,2]
[371715952,1752401452490,-460.0,0.00018356,2]
[371715954,1752401452499,-151.0,0.00018356,2]
[371715956,1752401452509,-460.0,0.00018356,2]
[371715958,1752401452519,-460.0,0.00018356,2]
[371715960,1752401452529,-460.0,0.00018356,2]
[371715962,1752401452539,-460.0,0.00018356,2]
[371715964,1752401452548,-460.0,0.00018356,2]
[371715966,1752401452557,-474.0,0.00018356,2]
[371715968,1752401452567,-460.0,0.00018356,2]
[371715970,1752401452577,-460.0,0.00018356,2]
[371715972,1752401452587,-235.86,0.00018356,2]
[371715974,1752401452596,-460.0,0.00018356,2]
[371715976,1752401452605,-151.0,0.00018356,2]
[371715978,1752401452615,-460.0,0.00018356,2]
[371715980,1752401452625,-460.0,0.00018356,2]
[371715982,1752401452635,-460.0,0.00018356,2]
[371715984,1752401452644,-151.0,0.00018356,2]
[371715986,1752401452654,-460.0,0.00018356,2]
[371715988,1752401452663,-859.14,0.00018356,2]
[371715990,1752401452673,-460.0,0.00018356,2]
[371715992,1752401452683,-460.0,0.00018356,2]
[371715994,1752401452692,-460.0,0.00018356,2]
[371715996,1752401452701,-460.0,0.00018356,2]
[371715998,1752401452711,-182.13,0.00018356,2]
[371716000,1752401452720,-460.0,0.00018356,2]
[371716002,1752401452729,-460.0,0.00018356,2]
[371716004,1752401452739,-460.0,0.00018356,2]
[371716006,1752401452748,-460.0,0.00018356,2]
[371716008,1752401452758,-460.0,0.00018356,2]
[371716010,1752401452768,-460.0,0.00018356,2]
[371716012,1752401452780,-460.0,0.00018356,2]
[371716014,1752401452789,-460.0,0.00018356,2]
[371716016,1752401452799,-460.0,0.00018356,2]
[371716018,1752401452809,-1165.32,0.00018356,2]
[371716020,1752401452821,-151.0,0.00018356,2]
[371716022,1752401452831,-460.0,0.00018356,2]
[371716024,1752401452842,-611.67,0.00018356,2]
[371716026,1752401452853,-460.0,0.00018356,2]
[371716028,1752401452863,-460.0,0.00018356,2]
[371716030,1752401452873,-460.0,0.00018356,2]
[371716032,1752401452882,-460.0,0.00018356,2]
[371716034,1752401452892,-632.75,0.00018356,2]
[371716036,1752401452903,-460.0,0.00018356,2]
[371716038,1752401452913,-956.74,0.00018356,2]
[371716040,1752401452923,-1121.54,0.00018356,2]
[371716042,1752401452932,-460.0,0.00018356,2]
[371716044,1752401452942,-460.0,0.00018356,2]
[371716046,1752401452951,-2443.8,0.00018356,2]
[371716048,1752401452961,-2757.78,0.00018356,2]
[371716050,1752401452971,-630.2,0.00018356,2]
[371716052,1752401452981,-902.92,0.00018356,2]
[371716054,1752401452990,-460.0,0.00018356,2]
[371716056,1752401453000,-460.0,0.00018356,2]
[371716058,1752401453009,-2126.61,0.00018356,2]
[371716059,1752401453019,-2976.86,0.00018356,2]
[371716061,1752401453029,-1054.85,0.00018356,2]
[371716063,1752401453039,-460.0,0.00018356,2]
[371716066,1752401453049,-460.0,0.00018356,2]